bitfinex-derivatives/quotes_BTCF0:USTF0_20250510
["timestamp","ask_amount","ask_price","bid_price","bid_amount"]
[1746867328614,0.97745799,103750.0,103740.0,0.2427607]
[1746867330119,1.26665799,103750.0,103740.0,0.2427607]
[1746867330817,1.07391589,103750.0,103740.0,0.2427607]
[1746867331018,1.26665799,103750.0,103740.0,0.2427607]
[1746867331418,1.07391589,103750.0,103740.0,0.2427607]
[1746867331717,1.26923162,103750.0,103740.0,0.2427607]
[1746867331905,1.02923162,103750.0,103740.0,0.2427607]
[1746867332109,1.22197372,103750.0,103740.0,0.2427607]
[1746867332309,1.02923162,103750.0,103740.0,0.2427607]
[1746867332611,1.02923162,103750.0,103740.0,0.2736607]
[1746867333607,1.11483461,103750.0,103740.0,0.2736607]
[1746867333811,1.02923162,103750.0,103740.0,0.2736607]
[1746867334120,1.22197372,103750.0,103740.0,0.2736607]
[1746867334824,1.02923162,103750.0,103740.0,0.2736607]
[1746867335123,1.02923162,103750.0,103740.0,0.2427607]
[1746867335913,1.02923162,103750.0,103740.0,0.2730607]
[1746867336113,1.31275162,103750.0,103740.0,0.2730607]
[1746867337020,1.11743589,103750.0,103740.0,0.2730607]
[1746867337619,1.01029678,103750.0,103740.0,0.2730607]
[1746867337913,1.11743589,103750.0,103740.0,0.2730607]
[1746867340123,1.01029678,103750.0,103740.0,0.2730607]
[1746867340326,1.11743589,103750.0,103740.0,0.2730607]
[1746867341622,1.01029678,103750.0,103740.0,0.2730607]
[1746867342013,1.11743589,103750.0,103740.0,0.2730607]
[1746867343325,1.31017799,103750.0,103740.0,0.2730607]
[1746867343515,1.11743589,103750.0,103740.0,0.2730607]
[1746867343820,1.31289861,103750.0,103740.0,0.2730607]
[1746867344423,1.50564071,103750.0,103740.0,0.2730607]
[1746867344823,1.31289861,103750.0,103740.0,0.2730607]
[1746867345320,1.50564071,103750.0,103740.0,0.2730607]
[1746867345626,1.31289861,103750.0,103740.0,0.2730607]
[1746867346713,1.2057595,103750.0,103740.0,0.2730607]
[1746867346921,1.02369861,103750.0,103740.0,0.48939868]
[1746867347121,1.29493861,103750.0,103740.0,0.48939868]
[1746867347322,1.29493861,103750.0,103740.0,0.52079868]
[1746867350032,1.1877995,103750.0,103740.0,0.52079868]
[1746867350332,1.29493861,103750.0,103740.0,0.52079868]
[1746867350515,1.48768071,103750.0,103740.0,0.52079868]
[1746867350919,1.3805416,103750.0,103740.0,0.52079868]
[1746867351119,1.29493861,103750.0,103740.0,0.52079868]
[1746867351615,1.48768071,103750.0,103740.0,0.52079868]
[1746867351820,1.29493861,103750.0,103740.0,0.52079868]
[1746867353129,1.48768071,103750.0,103740.0,0.52079868]
[1746867354033,1.3805416,103750.0,103740.0,0.52079868]
[1746867354225,1.48768071,103750.0,103740.0,0.52079868]
[1746867354733,1.29493861,103750.0,103740.0,0.52079868]
[1746867356433,1.48768071,103750.0,103740.0,0.52079868]
[1746867356734,1.29493861,103750.0,103740.0,0.52079868]
[1746867358127,1.48768071,103750.0,103740.0,0.52079868]
[1746867358932,1.29493861,103750.0,103740.0,0.52079868]
[1746867359133,1.48768071,103750.0,103740.0,0.52079868]
[1746867359930,1.29221799,103750.0,103740.0,0.52079868]
[1746867360130,1.29221799,103750.0,103740.0,0.68679868]
[1746867360326,1.09947589,103750.0,103740.0,0.68679868]
[1746867360630,1.29221799,103750.0,103740.0,0.68679868]
[1746867361135,1.29221799,103750.0,103740.0,0.52079868]
[1746867361936,1.09947589,103750.0,103740.0,0.52079868]
[1746867362136,1.29221799,103750.0,103740.0,0.68679868]
[1746867363637,1.18507888,103750.0,103740.0,0.68679868]
[1746867363940,1.02505589,103750.0,103740.0,0.68679868]
[1746867364236,0.94851678,103750.0,103740.0,0.68679868]
[1746867364442,0.98031678,103750.0,103740.0,0.68679868]
[1746867364839,1.08745589,103750.0,103740.0,0.68679868]
[1746867365243,1.08605589,103750.0,103740.0,0.68679868]
[1746867365537,0.66351678,103750.0,103740.0,0.68679868]
[1746867365739,0.91623678,103750.0,103740.0,0.68679868]
[1746867368144,0.63271678,103750.0,103740.0,0.68679868]
[1746867368434,0.01919678,103750.0,103740.0,1.04759868]
[1746867368639,0.01919678,103750.0,103740.0,1.06253876]
[1746867369230,0.01919678,103750.0,103740.0,1.04759868]
[1746867371744,0.08948372,103750.0,103740.0,1.04759868]
[1746867372739,0.01919678,103750.0,103740.0,1.04759868]
[1746867374648,0.05049678,103750.0,103740.0,1.04759868]
[1746867375641,0.12078372,103750.0,103740.0,1.04759868]
[1746867375949,0.05049678,103750.0,103740.0,1.04759868]
[1746867377343,0.12078372,103750.0,103740.0,1.04759868]
[1746867378554,0.05049678,103750.0,103740.0,1.04759868]
[1746867380558,0.48158372,103750.0,103740.0,0.4704607]
[1746867380757,0.61737066,103750.0,103740.0,0.4390607]
[1746867381060,0.47679678,103750.0,103740.0,0.4390607]
[1746867381263,0.73982662,103750.0,103740.0,0.2730607]
[1746867381461,0.54708372,103750.0,103740.0,0.2730607]
[1746867381860,0.54708372,103750.0,103740.0,0.2230607]
[1746867384067,0.78744372,103750.0,103740.0,0.2230607]
[1746867385664,0.78744372,103750.0,103730.0,0.26963893]
[1746867385665,0.1927626,103740.0,103730.0,0.2891518]
[1746867385861,0.75733648,103740.0,103730.0,0.2891518]
[1746867386162,0.75733648,103740.0,103730.0,0.3200518]
[1746867387567,0.75733648,103740.0,103730.0,0.3210518]
[1746867387762,0.6167626,103740.0,103730.0,0.3210518]
[1746867387966,0.75733888,103740.0,103730.0,0.3210518]
[1746867388963,0.75735388,103740.0,103730.0,0.3210518]
[1746867393463,0.75735388,103740.0,103730.0,0.3200518]
[1746867393464,0.75835388,103740.0,103730.0,0.3200518]
[1746867393669,0.75935388,103740.0,103730.0,0.3200518]
[1746867394460,0.76235388,103740.0,103730.0,0.50448978]
[1746867400374,0.65848,103740.0,103730.0,0.50448978]
[1746867400570,0.70082694,103740.0,103730.0,0.56558978]
[1746867400772,0.93002694,103740.0,103730.0,0.56558978]
[1746867401083,0.93002694,103740.0,103730.0,0.73158978]
[1746867401381,0.92702694,103740.0,103730.0,0.73158978]
[1746867401579,0.92802694,103740.0,103730.0,0.73158978]
[1746867401784,0.93002694,103740.0,103730.0,0.73158978]
[1746867402078,0.85974,103740.0,103730.0,0.73158978]
[1746867402380,0.93002694,103740.0,103730.0,0.73158978]
[1746867403367,0.92602694,103740.0,103730.0,0.73158978]
[1746867403978,0.99631388,103740.0,103730.0,0.73158978]
[1746867404183,0.92602694,103740.0,103730.0,0.73158978]
[1746867404673,0.95862694,103740.0,103730.0,0.73158978]
[1746867405678,0.96287826,103740.0,103730.0,0.73158978]
[1746867407984,0.85574,103740.0,103730.0,0.73158978]
[1746867408186,0.82304,103740.0,103730.0,0.73158978]
[1746867408481,0.93017826,103740.0,103730.0,0.73158978]
[1746867408879,0.70097826,103740.0,103730.0,0.73158978]
[1746867409076,0.81928,103740.0,103730.0,0.73158978]
[1746867409280,0.92641826,103740.0,103730.0,0.73158978]
[1746867409991,0.70097826,103740.0,103730.0,0.73158978]
[1746867410284,0.81928,103740.0,103730.0,0.73158978]
[1746867410877,0.92641826,103740.0,103730.0,0.73158978]
[1746867412587,0.98851826,103740.0,103730.0,0.73158978]
[1746867413080,1.18129826,103740.0,103730.0,0.73158978]
[1746867413278,0.98851826,103740.0,103730.0,0.73158978]
[1746867413486,1.18129826,103740.0,103730.0,0.73158978]
[1746867413988,1.11919826,103740.0,103730.0,0.73158978]
[1746867414188,1.18239826,103740.0,103730.0,0.73158978]
[1746867415583,1.28953652,103740.0,103730.0,0.4860518]
[1746867415779,1.21249826,103740.0,103730.0,0.67048978]
[1746867416187,1.21249826,103740.0,103730.0,0.50448978]
[1746867417695,1.18239826,103740.0,103730.0,0.50448978]
[1746867417992,1.18239826,103740.0,103730.0,0.56908978]
[1746867418989,1.21349826,103740.0,103730.0,0.56908978]
[1746867419384,1.21549826,103740.0,103730.0,0.56908978]
[1746867420390,1.21749826,103740.0,103730.0,0.56908978]
[1746867420992,1.57829826,103740.0,103730.0,0.56908978]
[1746867422386,1.57829826,103740.0,103730.0,0.53708978]
[1746867423889,1.47116,103740.0,103730.0,0.53708978]
[1746867424193,1.57829826,103740.0,103730.0,0.53708978]
[1746867426690,0.2410305,103720.0,103710.0,0.04517539]
[1746867426894,1.02156326,103720.0,103710.0,0.23799789]
[1746867427096,1.11796326,103720.0,103710.0,0.23799789]
[1746867427292,0.1928357,103710.0,103700.0,0.0325]
[1746867427499,1.29208222,103710.0,103700.0,0.27052969]
[1746867427799,1.29208222,103710.0,103700.0,0.23802969]
[1746867427989,1.29208222,103710.0,103700.0,0.1928543]
[1746867428387,1.29208222,103710.0,103700.0,0.23802969]
[1746867428588,0.1928543,103700.0,103690.0,0.2892919]
[1746867428782,0.1928729,103690.0,103680.0,0.29327908]
[1746867428996,0.72401116,103690.0,103680.0,0.33845447]
[1746867429195,0.53113826,103690.0,103680.0,0.50445447]
[1746867429893,0.72401116,103690.0,103680.0,0.45623177]
[1746867430399,0.72401116,103690.0,103680.0,0.45923177]
[1746867430789,0.73360292,103690.0,103680.0,0.45923177]
[1746867431292,0.43359176,103690.0,103680.0,0.45923177]
[1746867431486,0.54073002,103690.0,103680.0,0.49513177]
[1746867431997,0.43359176,103690.0,103680.0,0.49513177]
[1746867432200,0.43359176,103690.0,103680.0,0.52663177]
[1746867432398,0.43359176,103690.0,103680.0,0.49619622]
[1746867432593,0.59551176,103690.0,103680.0,0.64850987]
[1746867432794,0.00959176,103690.0,103680.0,0.65850987]
[1746867432999,0.72345826,103700.0,103690.0,0.1928729]
[1746867433202,0.75415826,103700.0,103690.0,0.40404829]
[1746867433395,0.75415826,103700.0,103690.0,0.49644829]
[1746867433595,0.75415826,103700.0,103690.0,1.99644829]
[1746867433993,0.76369479,103700.0,103690.0,1.99644829]
[1746867434507,0.76369479,103700.0,103690.0,1.99844829]
[1746867435697,0.95654909,103700.0,103690.0,0.46694829]
[1746867439604,0.95654909,103700.0,103690.0,0.168]
[1746867439803,0.86013079,103700.0,103680.0,0.0302]
[1746867440106,0.86013079,103700.0,103670.0,0.21632881]
[1746867440107,0.1928915,103680.0,103670.0,0.21632881]
[1746867440295,0.99300802,103680.0,103670.0,0.01]
[1746867440494,1.05630802,103680.0,103670.0,0.2029101]
[1746867440706,0.1929288,103660.0,103650.0,0.26141547]
[1746867441004,1.05369826,103660.0,103650.0,0.38659086]
[1746867441199,1.30982706,103660.0,103650.0,0.58259086]
[1746867441404,1.2026888,103660.0,103650.0,0.26623567]
[1746867441699,1.30982706,103660.0,103650.0,0.45918307]
[1746867442599,1.30982706,103660.0,103650.0,0.35918307]
[1746867443106,1.30982706,103660.0,103650.0,0.39578307]
[1746867443405,1.11689826,103660.0,103650.0,0.42788307]
[1746867443598,0.94656,103660.0,103650.0,0.42788307]
[1746867443802,0.94656,103660.0,103650.0,0.47705846]
[1746867444107,1.05369826,103660.0,103650.0,0.47705846]
[1746867444310,1.08699826,103660.0,103650.0,0.47705846]
[1746867444616,0.97986,103660.0,103650.0,0.47705846]
[1746867444801,0.7216,103660.0,103650.0,0.59419672]
[1746867445001,0.8108,103660.0,103650.0,0.59419672]
[1746867445309,0.8108,103660.0,103650.0,0.48705846]
[1746867445509,0.91793826,103660.0,103650.0,0.48705846]
[1746867445699,1.29793826,103660.0,103650.0,0.47705846]
[1746867445898,1.1908,103660.0,103650.0,0.47705846]
[1746867447703,0.8208,103660.0,103650.0,0.48705846]
[1746867447911,1.0308,103660.0,103650.0,0.48705846]
[1746867448301,1.13793826,103660.0,103650.0,0.48705846]
[1746867448499,1.16843826,103660.0,103650.0,0.48705846]
[1746867449105,1.0613,103660.0,103650.0,0.48705846]
[1746867449303,1.0613,103660.0,103650.0,0.48405846]
[1746867449701,1.07575138,103660.0,103650.0,0.48405846]
[1746867450013,1.07675138,103660.0,103650.0,0.48305846]
[1746867450221,1.07675138,103660.0,103650.0,0.47905846]
[1746867450419,1.26868018,103660.0,103650.0,0.48105846]
[1746867450719,1.76881844,103660.0,103650.0,0.48105846]
[1746867450912,1.76881844,103660.0,103650.0,0.39378307]
[1746867451107,1.76881844,103660.0,103650.0,0.22778307]
[1746867451521,1.76981844,103660.0,103650.0,0.22678307]
[1746867452520,1.57688964,103660.0,103650.0,0.25768307]
[1746867452818,1.76981844,103660.0,103650.0,0.25668307]
[1746867453121,1.77081844,103660.0,103650.0,0.42268307]
[1746867453918,1.77081844,103660.0,103650.0,0.39178307]
[1746867454116,1.77081844,103660.0,103650.0,0.22578307]
[1746867454919,1.77081844,103660.0,103650.0,0.00023567]
[1746867455118,1.8779567,103660.0,103650.0,0.19318307]
[1746867455311,1.77081844,103660.0,103650.0,0.00023567]
[1746867455619,1.8779567,103660.0,103650.0,0.00023567]
[1746867456017,0.192966,103640.0,103630.0,0.3528625]
[1746867456214,1.34170426,103640.0,103630.0,0.51579209]
[1746867456415,1.40570426,103640.0,103630.0,0.51579209]
[1746867456616,1.40570426,103640.0,103630.0,0.40414729]
[1746867457125,1.21273826,103640.0,103630.0,0.43564729]
[1746867457422,1.1056,103640.0,103630.0,0.47824729]
[1746867457620,1.1056,103640.0,103630.0,0.46824729]
[1746867457920,0.98624,103640.0,103630.0,0.58538555]
[1746867458115,1.22624,103640.0,103630.0,0.47824729]
[1746867458423,1.22924,103640.0,103630.0,0.47824729]
[1746867458622,1.23124,103640.0,103630.0,0.47824729]
[1746867459128,1.22724,103640.0,103630.0,0.47824729]
[1746867459815,1.22724,103640.0,103630.0,0.48124729]
[1746867460216,1.33437826,103640.0,103630.0,0.48124729]
[1746867460417,1.39667826,103640.0,103630.0,0.48124729]
[1746867460625,1.39567826,103640.0,103630.0,0.48124729]
[1746867460822,1.39567826,103640.0,103630.0,0.48424729]
[1746867461016,1.28854,103640.0,103630.0,0.48424729]
[1746867461720,1.58864426,103640.0,103630.0,0.47924729]
[1746867461932,1.706586,103640.0,103630.0,0.47124729]
[1746867462118,1.81372426,103640.0,103630.0,0.47124729]
[1746867462928,1.62075826,103640.0,103630.0,0.47124729]
[1746867463118,1.51362,103640.0,103630.0,0.47124729]
[1746867463317,1.62075826,103640.0,103630.0,0.47124729]
[1746867463518,1.45132,103640.0,103630.0,0.53124729]
[1746867463716,1.0016,103640.0,103630.0,0.53124729]
[1746867463923,1.01786098,103660.0,103650.0,0.1929474]
[1746867464125,1.53649924,103660.0,103650.0,0.40412279]
[1746867464430,1.56909924,103660.0,103650.0,0.46462279]
[1746867464930,1.92989924,103660.0,103650.0,0.46362279]
[1746867465229,1.73696964,103660.0,103650.0,0.46362279]
[1746867465434,1.93189844,103660.0,103650.0,0.46362279]
[1746867465924,1.93589844,103660.0,103650.0,0.46362279]
[1746867466124,1.74296964,103660.0,103650.0,0.46362279]
[1746867466426,1.74096964,103660.0,103650.0,0.46362279]
[1746867466630,1.40931138,103660.0,103650.0,0.4184474]
[1746867466823,1.24031138,103660.0,103650.0,0.46362279]
[1746867467021,0.87951138,103660.0,103650.0,0.46362279]
[1746867467723,0.96996,103660.0,103650.0,0.47362279]
[1746867468029,0.60896,103660.0,103650.0,0.58076105]
[1746867468224,0.3838,103660.0,103650.0,0.47462279]
[1746867468625,0.7734,103660.0,103650.0,0.47462279]
[1746867468822,0.7408,103660.0,103650.0,0.47462279]
[1746867469327,1.04086706,103660.0,103650.0,0.47462279]
[1746867469532,0.91273826,103660.0,103650.0,0.47662279]
[1746867469828,0.91273826,103660.0,103650.0,0.47762279]
[1746867470729,1.10566706,103660.0,103650.0,0.44712279]
[1746867470935,1.13746706,103660.0,103650.0,0.4019474]
[1746867471434,1.15202719,103660.0,103650.0,0.4019474]
[1746867471732,1.15202719,103660.0,103650.0,0.3909474]
[1746867471934,1.15202719,103660.0,103650.0,0.3889474]
[1746867473620,1.15202719,103660.0,103650.0,0.3589474]
[1746867474022,0.85196013,103660.0,103650.0,0.40412279]
[1746867474228,0.95909839,103660.0,103650.0,0.46832279]
[1746867474423,1.15202719,103660.0,103650.0,0.3908474]
[1746867474728,1.15202719,103660.0,103650.0,0.3589474]
[1746867475235,1.15202719,103660.0,103650.0,0.1929474]
[1746867476339,1.15402719,103660.0,103650.0,0.1929474]
[1746867476741,1.16125719,103660.0,103650.0,0.1929474]
[1746867477239,1.26839545,103660.0,103650.0,0.001]
[1746867477541,0.1929474,103650.0,103640.0,0.3376682]
[1746867477740,1.19152392,103650.0,103640.0,0.3376682]
[1746867478040,1.19152392,103650.0,103640.0,0.2411893]
[1746867478931,1.19152392,103650.0,103640.0,0.2421893]
[1746867480232,1.19152392,103650.0,103640.0,0.1939518]
[1746867481037,0.192966,103640.0,103630.0,0.3222676]
[1746867481242,1.58238426,103640.0,103630.0,0.36744299]
[1746867481447,1.475246,103640.0,103630.0,0.3222676]
[1746867481644,1.58238426,103640.0,103630.0,0.3222676]
[1746867482444,1.58238426,103640.0,103630.0,0.36744299]
[1746867483044,1.58238426,103640.0,103630.0,0.27095179]
[1746867483244,1.475246,103640.0,103630.0,0.23815179]
[1746867483435,1.58238426,103640.0,103630.0,0.23815179]
[1746867484145,0.1929846,103630.0,103620.0,0.32594708]
[1746867484339,1.08282286,103630.0,103620.0,0.37112247]
[1746867485340,1.08282286,103630.0,103620.0,0.37312247]
[1746867485545,1.08282286,103630.0,103620.0,0.37412247]
[1746867485845,1.09261573,103630.0,103620.0,0.37412247]
[1746867486042,0.89963113,103630.0,103620.0,0.37412247]
[1746867486247,1.12335113,103630.0,103620.0,0.40522247]
[1746867486736,0.97632,103630.0,103620.0,0.41522247]
[1746867486943,0.61776,103640.0,103630.0,0.1929846]
[1746867487246,1.24167826,103640.0,103630.0,0.36325999]
[1746867488342,1.24167826,103640.0,103630.0,0.49925999]
[1746867488547,1.27407826,103640.0,103630.0,0.49925999]
[1746867488952,1.47681289,103640.0,103630.0,0.49925999]
[1746867489141,1.47681289,103640.0,103630.0,0.33325999]
[1746867489742,1.28384689,103640.0,103630.0,0.33325999]
[1746867491348,1.25144689,103640.0,103630.0,0.33325999]
[1746867491548,1.14430863,103640.0,103630.0,0.33325999]
[1746867491745,0.85492863,103640.0,103630.0,0.34325999]
[1746867491950,0.60492863,103640.0,103630.0,0.34325999]
[1746867492143,0.60492863,103640.0,103630.0,0.50925999]
[1746867492345,0.59492863,103640.0,103630.0,0.50925999]
[1746867492544,0.60492863,103640.0,103630.0,0.50925999]
[1746867493252,0.60492863,103640.0,103630.0,2.00925999]
[1746867493447,0.71206689,103640.0,103630.0,2.01125999]
[1746867493751,0.48790761,103650.0,103640.0,0.192966]
[1746867493940,0.95860761,103650.0,103640.0,0.31284139]
[1746867494146,0.95860761,103650.0,103640.0,0.47884139]
[1746867494147,1.25869327,103650.0,103640.0,0.47884139]
[1746867494345,1.28889327,103650.0,103640.0,0.46884139]
[1746867494544,1.09594587,103650.0,103640.0,0.46884139]
[1746867494943,1.12754587,103650.0,103640.0,0.46884139]
[1746867495142,1.33754587,103650.0,103640.0,0.46884139]
[1746867496556,1.23040761,103650.0,103640.0,0.46884139]
[1746867496749,1.33754587,103650.0,103640.0,0.46884139]
[1746867497552,0.997,103650.0,103640.0,0.46884139]
[1746867497753,0.5852,103650.0,103640.0,0.47884139]
[1746867498251,0.5952,103650.0,103640.0,0.47884139]
[1746867498456,0.3608,103650.0,103640.0,0.68246365]
[1746867498953,0.3608,103650.0,103640.0,0.47884139]
[1746867500047,0.3608,103650.0,103640.0,0.48084139]
[1746867500948,0.2537,103670.0,103660.0,0.1929288]
[1746867501150,0.82401,103670.0,103660.0,0.42410419]
[1746867501354,1.18481,103670.0,103660.0,0.48660419]
[1746867502849,1.19460968,103670.0,103660.0,0.48660419]
[1746867503858,0.97152968,103670.0,103660.0,0.48660419]
[1746867504060,1.19444968,103670.0,103660.0,0.48660419]
[1746867504259,1.22534968,103670.0,103660.0,0.48660419]
[1746867504450,1.33248794,103670.0,103660.0,0.48660419]
[1746867505150,1.33248794,103670.0,103660.0,0.3789288]
[1746867505151,1.52539804,103670.0,103660.0,0.3789288]
[1746867505350,1.52539804,103670.0,103660.0,0.3894288]
[1746867505551,1.41825978,103670.0,103660.0,0.4209288]
[1746867505859,1.33248794,103670.0,103660.0,0.4209288]
[1746867506262,1.33248794,103670.0,103660.0,0.46610419]
[1746867506263,1.22534968,103670.0,103660.0,0.46610419]
[1746867506662,1.52539804,103670.0,103660.0,0.46610419]
[1746867508154,1.33248794,103670.0,103660.0,0.46610419]
[1746867509262,1.15248794,103670.0,103660.0,0.47610419]
[1746867509764,1.04534968,103670.0,103660.0,0.47610419]
[1746867511564,1.32248794,103670.0,103660.0,0.46610419]
[1746867512068,1.32248794,103670.0,103660.0,0.40410419]
[1746867512366,1.32248794,103670.0,103660.0,0.43570419]
[1746867512554,1.32248794,103670.0,103660.0,0.46640419]
[1746867514763,1.21534968,103670.0,103660.0,0.47640419]
[1746867515066,1.00534968,103670.0,103660.0,0.47640419]
[1746867515861,1.11248794,103670.0,103660.0,0.47640419]
[1746867516561,0.58396,103690.0,103680.0,0.1928915]
[1746867516765,0.74796,103690.0,103680.0,0.25806689]
[1746867516970,0.74796,103690.0,103680.0,0.2442915]
[1746867517157,0.47796,103690.0,103680.0,0.45546689]
[1746867517466,0.25576,103690.0,103680.0,0.45546689]
[1746867517662,1.18796,103700.0,103690.0,0.1928729]
[1746867517851,1.80237625,103700.0,103690.0,0.30584829]
[1746867518162,0.64661625,103700.0,103690.0,0.47184829]
[1746867518358,0.39225625,103700.0,103690.0,0.47184829]
[1746867518562,0.3826,103700.0,103690.0,0.57898655]
[1746867518864,0.3826,103700.0,103690.0,0.47184829]
[1746867519267,0.3826,103700.0,103690.0,0.46884829]
[1746867519569,0.3826,103700.0,103690.0,1.96884829]
[1746867519758,0.3826,103700.0,103690.0,1.97084829]
[1746867520263,0.3836,103700.0,103690.0,1.97084829]
[1746867520566,0.001,103700.0,103690.0,1.97084829]
[1746867520771,0.0511,103700.0,103690.0,1.97084829]
[1746867520956,0.0826,103700.0,103690.0,1.97084829]
[1746867521161,0.0816,103700.0,103690.0,1.97384829]
[1746867529177,0.0816,103700.0,103690.0,2.00694829]
[1746867529374,0.18873826,103700.0,103690.0,2.00694829]
[1746867529576,1.10239256,103700.0,103690.0,1.8999729]
[1746867529774,0.90953826,103700.0,103690.0,0.3999729]
[1746867529977,1.10239256,103700.0,103690.0,0.3899729]
[1746867530176,1.10239256,103700.0,103690.0,0.2239729]
[1746867531376,0.90953826,103700.0,103690.0,0.2239729]
[1746867531780,0.8024,103700.0,103690.0,0.2239729]
[1746867531979,0.90953826,103700.0,103690.0,0.2239729]
[1746867533674,1.10239256,103700.0,103690.0,0.2239729]
[1746867534175,0.90953826,103700.0,103690.0,0.2239729]
[1746867536778,0.9952543,103700.0,103690.0,0.2239729]
[1746867536979,1.10239256,103700.0,103690.0,0.2239729]
[1746867537281,0.90953826,103700.0,103690.0,0.2239729]
[1746867537683,0.8024,103700.0,103690.0,0.2339729]
[1746867537984,0.8024,103700.0,103690.0,0.2653729]
[1746867538185,0.8024,103700.0,103690.0,0.4313729]
[1746867538983,0.8024,103700.0,103690.0,0.47654829]
[1746867545190,0.38,103700.0,103690.0,0.58368655]
[1746867545896,0.66571045,103710.0,103700.0,0.1928543]
[1746867546104,0.66571045,103710.0,103700.0,0.33332969]
[1746867546387,0.08471045,103710.0,103700.0,0.35332969]
[1746867546589,0.05281045,103710.0,103700.0,0.35332969]
[1746867546995,0.02081045,103710.0,103700.0,0.82126795]
[1746867547294,0.02081045,103710.0,103700.0,1.00319277]
[1746867547686,0.02081045,103710.0,103700.0,0.89605439]
[1746867547885,0.02081045,103710.0,103700.0,0.88212969]
[1746867548593,0.05111045,103710.0,103700.0,0.88212969]
[1746867549885,0.51904871,103710.0,103700.0,0.52132969]
[1746867550096,0.54914871,103710.0,103700.0,0.52132969]
[1746867550593,0.44201045,103710.0,103700.0,0.52132969]
[1746867550986,0.05111045,103710.0,103700.0,0.52132969]
[1746867552491,0.08141045,103710.0,103700.0,0.52132969]
[1746867553193,0.63504615,103710.0,103700.0,0.52132969]
[1746867553493,0.58184871,103710.0,103700.0,0.52132969]
[1746867553992,0.57461871,103710.0,103700.0,0.52132969]
[1746867558304,0.58184871,103710.0,103700.0,0.52132969]
[1746867558601,0.22104871,103710.0,103700.0,0.52132969]
[1746867559004,0.58184871,103710.0,103700.0,0.52132969]
[1746867559203,0.47471045,103710.0,103700.0,0.52132969]
[1746867561911,0.47471045,103710.0,103700.0,0.50132969]
[1746867562512,0.44221045,103710.0,103700.0,0.50132969]
[1746867562814,0.08141045,103710.0,103700.0,0.51132969]
[1746867565309,0.08141045,103710.0,103700.0,0.4661543]
[1746867565612,0.08141045,103710.0,103700.0,0.51132969]
[1746867565809,0.05111045,103710.0,103700.0,0.51132969]
[1746867566209,0.02081045,103710.0,103700.0,0.97926795]
[1746867566712,0.02081045,103710.0,103700.0,0.87212969]
[1746867569709,0.24022433,103710.0,103700.0,0.87212969]
[1746867573420,0.21656521,103710.0,103700.0,0.87212969]
[1746867577620,0.21656521,103710.0,103700.0,0.92212969]
[1746867578209,0.21656521,103710.0,103700.0,2.42212969]
[1746867581014,0.21656521,103710.0,103700.0,2.49246652]
[1746867582714,0.02081045,103710.0,103700.0,2.49246652]
[1746867584815,0.02081045,103710.0,103700.0,2.50739539]
[1746867585018,0.02081045,103710.0,103700.0,2.50739535]
[1746867586927,0.02081045,103710.0,103700.0,2.50739534]
[1746867588831,0.02081045,103710.0,103700.0,2.50739466]
[1746867590823,0.08341045,103710.0,103700.0,2.50739466]
[1746867592430,0.08341045,103710.0,103700.0,2.49246652]
[1746867593030,0.08341045,103710.0,103700.0,2.13166652]
[1746867593230,0.08341045,103710.0,103700.0,2.49246652]
[1746867597629,0.08341045,103710.0,103700.0,2.42212969]
[1746867597927,0.08341045,103710.0,103700.0,2.49246652]
[1746867600229,0.04383,103710.0,103700.0,2.42212969]
[1746867600530,0.49116539,103730.0,103720.0,0.1928171]
[1746867600831,0.73750539,103730.0,103720.0,0.1928171]
[1746867601034,0.80784222,103730.0,103720.0,0.2545171]
[1746867601224,1.16864222,103730.0,103720.0,1.7545171]
[1746867601533,1.16864222,103730.0,103720.0,1.6928171]
[1746867601730,1.16864222,103730.0,103720.0,0.1928171]
[1746867602233,1.17817075,103730.0,103720.0,0.2235171]
[1746867602434,1.17817075,103730.0,103720.0,0.2245171]
[1746867603733,1.21107075,103730.0,103720.0,0.2245171]
[1746867604426,1.14073392,103730.0,103720.0,0.2245171]
[1746867604621,0.77953392,103730.0,103720.0,0.2245171]
[1746867604831,0.53449392,103730.0,103720.0,0.35815393]
[1746867605029,0.47069392,103730.0,103720.0,0.9693955]
[1746867605234,0.38618129,103730.0,103720.0,1.23179359]
[1746867605426,0.34619449,103730.0,103720.0,1.23179311]
[1746867605734,0.34619449,103730.0,103720.0,1.338219]
[1746867605735,0.11967459,103730.0,103720.0,1.338219]
[1746867606032,9e-08,103730.0,103720.0,1.388219]
[1746867606229,9e-08,103730.0,103720.0,1.38821864]
[1746867606429,9e-08,103730.0,103720.0,1.37330081]
[1746867606630,9e-08,103730.0,103720.0,1.4028757]
[1746867607032,9e-08,103730.0,103720.0,1.40287438]
[1746867607831,0.01123,103740.0,103730.0,0.1927986]
[1746867608032,0.01123,103740.0,103730.0,0.88727354]
[1746867608731,0.01123,103740.0,103730.0,0.89727354]
[1746867608932,0.01123,103740.0,103730.0,0.89927354]
[1746867609134,0.01123,103740.0,103730.0,1.06527354]
[1746867610028,0.01123,103740.0,103730.0,1.06727354]
[1746867611836,0.01123,103740.0,103730.0,1.05727354]
[1746867612427,0.01123,103740.0,103730.0,0.95017399]
[1746867612627,0.01123,103740.0,103730.0,0.58937399]
[1746867612936,0.10483,103740.0,103730.0,0.58937399]
[1746867613341,0.10483,103740.0,103730.0,2.08937399]
[1746867617337,0.21192955,103740.0,103730.0,2.08937399]
[1746867617738,0.0976,103740.0,103730.0,2.08937399]
[1746867618136,0.0976,103740.0,103730.0,1.92337399]
[1746867621043,0.0976,103740.0,103730.0,1.8781986]
[1746867623338,0.39747955,103740.0,103730.0,1.8781986]
[1746867623544,0.39747955,103740.0,103730.0,1.8475986]
[1746867623545,0.75827955,103740.0,103730.0,1.8475986]
[1746867623737,0.4584,103740.0,103730.0,0.3475986]
[1746867623936,0.56549955,103740.0,103730.0,0.3475986]
[1746867625048,0.75827955,103740.0,103730.0,0.3475986]
[1746867625247,0.56549955,103740.0,103730.0,0.3475986]
[1746867625748,0.4584,103740.0,103730.0,0.2275986]
[1746867625950,0.56549955,103740.0,103730.0,0.2275986]
[1746867626845,0.56549955,103740.0,103730.0,0.2594986]
[1746867627047,0.4584,103740.0,103730.0,0.2594986]
[1746867627755,0.52870528,103740.0,103730.0,0.2594986]
[1746867632053,0.4584,103740.0,103730.0,0.2594986]
[1746867632239,0.52870528,103740.0,103730.0,0.2594986]
[1746867633454,0.52870528,103740.0,103730.0,0.30467399]
[1746867634061,0.4584,103740.0,103730.0,0.30467399]
[1746867634360,0.52870528,103740.0,103730.0,0.30467399]
[1746867635554,0.4584,103740.0,103730.0,0.30467399]
[1746867635761,0.72148528,103740.0,103730.0,0.30467399]
[1746867636055,0.52870528,103740.0,103730.0,0.30467399]
[1746867636957,0.4584,103740.0,103730.0,0.30467399]
[1746867637157,0.52870528,103740.0,103730.0,0.30467399]
[1746867637459,0.4584,103740.0,103730.0,0.30467399]
[1746867637653,0.52870528,103740.0,103730.0,0.30467399]
[1746867638760,0.4584,103740.0,103730.0,0.30467399]
[1746867639053,0.52870528,103740.0,103730.0,0.30467399]